fUSD/lending_fUSD_20241220
["ID","MTS","AMOUNT","RATE_DAILY","PERIOD"]
[346052379,1734663041863,-8362.99876611,0.00025,2]
[346052380,1734663041874,-13168.24783551,0.00025,2]
[346052381,1734663042543,-61114.97071339,0.00025,2]
[346052382,1734663042567,-150.0,0.00024999,2]
[346052383,1734663042576,-6931.93321493,0.00025,2]
[346052384,1734663042587,-24550.05777,0.00025,2]
[346052385,1734663042598,-11604.93328896,0.00025,2]
[346052386,1734663042610,-2105.2,0.00025,2]
[346052388,1734663042620,-3103.58877401,0.00025,2]
[346052390,1734663042631,-601.092,0.00025,2]
[346052393,1734663042650,-3864.30000003,0.00025,2]
[346052400,1734663043052,-22174.28047161,0.00025,2]
[346052404,1734663046022,-500.0,0.00024999,4]
[346052405,1734663046034,-678.381433,0.00025,2]
[346052406,1734663046045,-18594.44987184,0.00025,2]
[346052407,1734663046056,-376.15904443,0.00025,2]
[346052408,1734663046068,-1095.9044008,0.00025,2]
[346052414,1734663935139,-3476.34715327,0.0002,2]
[346052415,1734663935161,-328.74,0.00021975,2]
[346052416,1734663935183,-500.0,0.0002304,2]
[346052417,1734663935205,-403.943,0.0002375,2]
[346052418,1734663935227,-1000.0,0.00023793,2]
[346052419,1734663935253,-718.42,0.0002388,2]
[346052420,1734663935283,-20312.05,0.0002388,2]
[346052421,1734663935305,-978.62,0.0002388,2]
[346052422,1734663935326,-250.0,0.00023882,2]
[346052423,1734663935347,-250.0,0.00023887,2]
[346052424,1734663935368,-201.0,0.0002389,2]
[346052425,1734663935389,-250.0,0.00023893,2]
[346052426,1734663935410,-250.0,0.00023897,2]
[346052427,1734663935430,-10000.0,0.00024,2]
[346052428,1734663935451,-3439.0,0.00024,7]
[346052429,1734663935473,-155.95,0.00024099,30]
[346052430,1734663935494,-608.36,0.00024231,2]
[346052431,1734663935515,-328.74,0.00024239,2]
[346052432,1734663935537,-384.0,0.0002425,2]
[346052433,1734663935557,-201.0,0.0002426,2]
[346052434,1734663935577,-384.0,0.000245,2]
[346052435,1734663935598,-6762.07418624,0.00024534,2]
[346052436,1734663935623,-201.0,0.0002463,2]
[346052437,1734663935643,-150.0,0.00024658,2]
[346052438,1734663935666,-150.0,0.00024747,2]
[346052439,1734663935687,-384.0,0.0002475,2]
[346052440,1734663935711,-150.0,0.00024755,2]
[346052441,1734663935735,-150.0,0.00024758,2]
[346052442,1734663935758,-150.0,0.00024762,2]
[346052443,1734663935782,-150.0,0.00024763,2]
[346052444,1734663935804,-150.0,0.00024766,2]
[346052445,1734663935827,-150.0,0.00024783,2]
[346052446,1734663935848,-1500.0,0.0002479,2]
[346052447,1734663935871,-1500.0,0.00024792,2]
[346052448,1734663935893,-498.59,0.00024797,2]
[346052449,1734663935915,-492.95,0.00024797,2]
[346052450,1734663935938,-497.97,0.00024797,2]
[346052451,1734663935959,-504.52,0.00024797,2]
[346052452,1734663935981,-507.64,0.00024797,2]
[346052453,1734663936003,-259.03854984,0.00024797,2]
[346052478,1734664232056,-665.35,0.00023916,2]
[346052479,1734664232067,-250.0,0.00023917,2]
[346052480,1734664232076,-31378.03453161,0.000247,3]
[346052481,1734664232087,-1949.2793136,0.000247,3]
[346052482,1734664232307,-14039.57831564,0.000247,3]
[346052483,1734664232318,-11712.44783915,0.000247,3]
[346052484,1734664232327,-2013.76883,0.0002475,2]
[346052485,1734664232336,-238.41145016,0.00024797,2]
[346052486,1734664232346,-494.43,0.00024797,2]
[346052487,1734664232355,-500.0,0.00024799,2]
[346052488,1734664232364,-500.0,0.000248,2]
[346052489,1734664232373,-500.0,0.000248,2]
[346052490,1734664232383,-501.34,0.00024801,2]
[346052491,1734664232393,-501.99,0.00024801,2]
[346052492,1734664232402,-501.41,0.00024802,2]
[346052493,1734664232411,-497.1,0.00024802,2]
[346052494,1734664232420,-150.0,0.00024809,2]
[346052495,1734664232429,-150.0,0.00024819,2]
[346052496,1734664232439,-150.0,0.00024822,2]
[346052497,1734664232448,-150.0,0.00024827,2]
[346052498,1734664232457,-150.0,0.0002483,2]
[346052499,1734664232468,-573.96410947,0.00024832,2]
[346052500,1734664232478,-150.0,0.0002484,2]
[346052501,1734664232487,-150.0,0.00024846,2]
[346052502,1734664232496,-150.0,0.00024858,2]
[346052503,1734664232506,-150.0,0.00024874,2]
[346052504,1734664232515,-150.0,0.00024875,2]
[346052505,1734664232524,-150.0,0.00024884,2]
[346052506,1734664232535,-150.0,0.00024885,2]
[346052507,1734664232544,-161.8873924,0.00024898,2]
[346052508,1734664232553,-161.88739239,0.00024898,2]
[346052509,1734664232563,-161.88739239,0.00024899,2]
[346052510,1734664232572,-6511.51,0.00024899,2]
[346052512,1734664232581,-446.3316,0.00024899,2]
[346052514,1734664232591,-409.3057874,0.00024899,2]
[346052516,1734664232600,-386.11957874,0.00024899,2]
[346052518,1734664232609,-409.3057874,0.00024899,2]
[346052520,1734664232618,-161.88739239,0.00024899,2]
[346052522,1734664232628,-409.3057874,0.00024899,2]
[346052524,1734664232638,-409.3057874,0.00024899,2]
[346052526,1734664232647,-409.3057874,0.00024899,2]
[346052528,1734664232656,-409.3057874,0.000249,2]
[346052530,1734664232666,-161.88739239,0.000249,2]
[346052532,1734664232675,-409.3057874,0.000249,2]
[346052534,1734664232685,-409.3057874,0.000249,2]
[346052536,1734664232694,-409.3057874,0.000249,2]
[346052538,1734664232703,-152.18,0.000249,14]
[346052539,1734664232717,-152.94,0.000249,31]
[346052540,1734664232727,-152.94,0.000249,31]
[346052541,1734664232737,-152.94,0.000249,31]
[346052542,1734664232746,-152.94,0.000249,31]
[346052543,1734664232756,-152.94,0.000249,31]
[346052544,1734664232765,-152.94,0.000249,31]
[346052545,1734664232775,-152.94,0.000249,31]
[346052546,1734664232786,-409.3057874,0.000249,2]
[346052547,1734664232795,-161.88739239,0.000249,2]
[346052548,1734664232804,-4589.89607418,0.000249,2]
[346052549,1734664232813,-1828.91288788,0.000249,2]
[346052550,1734664232822,-150.0,0.00024902,2]
[346052551,1734664232831,-150.0,0.0002491,2]
[346052552,1734664232841,-150.0,0.00024921,2]
[346052553,1734664232850,-150.0,0.00024924,2]
[346052555,1734664232860,-150.0,0.00024931,2]
[346052557,1734664232869,-150.0,0.00024945,2]
[346052559,1734664232879,-150.0,0.00024953,2]
[346052561,1734664232889,-150.0,0.00024958,2]
[346052563,1734664232898,-8537.527599,0.00024959,2]
[346052585,1734664237926,-7774.472401,0.00024959,2]
[346052587,1734664237936,-7814.0,0.00024959,2]
[346052588,1734664237945,-150.0,0.00024963,2]
[346052589,1734664237956,-150.0,0.00024963,2]
[346052590,1734664237965,-152.18203086,0.00024969,2]
[346052591,1734664237975,-150.0,0.0002498,2]
[346052592,1734664237984,-150.0,0.00024989,2]
[346052593,1734664237994,-787.72,0.00024997,3]
[346052594,1734664238004,-521.72666566,0.00024998,4]
[346052595,1734664238013,-600.0,0.00024998,4]
[346052596,1734664238023,-600.0,0.00024998,4]
[346052597,1734664238035,-500.0,0.00024998,2]
[346052598,1734664238045,-500.0,0.00024998,2]
[346052599,1734664238054,-510.04281323,0.00024998,4]
[346052600,1734664238064,-510.38177712,0.00024998,4]
[346052601,1734664238073,-510.48841048,0.00024998,4]
[346052602,1734664238084,-505.76,0.00024998,4]
[346052603,1734664238094,-409.28640411,0.00024998,4]
[346052604,1734664238104,-2990.0,0.00024998,4]
[346052605,1734664238114,-2990.0,0.00024998,4]
[346052606,1734664238123,-500.0,0.00024998,4]
[346052607,1734664238133,-500.0,0.00024998,4]
[346052608,1734664238143,-500.0,0.00024998,4]
[346052609,1734664238152,-500.0,0.00024998,4]
[346052610,1734664238162,-500.0,0.00024998,4]
[346052611,1734664238171,-500.0,0.00024998,4]
[346052612,1734664238180,-500.0,0.00024998,4]
[346052613,1734664238189,-269.61203741,0.00024998,4]
[346052614,1734664238200,-500.0,0.00024998,4]
[346052615,1734664238209,-500.0,0.00024998,4]
[346052616,1734664238218,-500.0,0.00024998,4]
[346052617,1734664238228,-500.0,0.00024998,4]
[346052618,1734664238237,-500.0,0.00024998,4]
[346052619,1734664238247,-500.0,0.00024998,4]
[346052620,1734664238256,-500.0,0.00024998,4]
[346052621,1734664238266,-500.0,0.00024998,4]
[346052622,1734664238276,-529.00599104,0.00024998,4]
[346052623,1734664238289,-500.0,0.00024998,4]
[346052624,1734664238300,-8357.32,0.00024998,4]
[346052625,1734664238309,-8357.32,0.00024998,4]
[346052626,1734664238319,-500.0,0.00024998,4]
[346052627,1734664238330,-500.0,0.00024998,4]
[346052628,1734664238339,-500.0,0.00024998,4]
[346052629,1734664238349,-500.0,0.00024998,4]
[346052630,1734664238359,-500.0,0.00024998,4]
[346052631,1734664238369,-500.0,0.00024998,4]
[346052632,1734664238379,-500.0,0.00024998,4]
[346052633,1734664238388,-500.0,0.00024998,4]
[346052634,1734664238398,-500.0,0.00024998,4]
[346052635,1734664238408,-500.0,0.00024998,4]
[346052636,1734664238418,-424.62349419,0.00024998,4]
[346052637,1734664238427,-500.0,0.00024998,4]
[346052638,1734664238437,-500.0,0.00024998,4]
[346052639,1734664238448,-500.0,0.00024998,4]
[346052640,1734664238458,-500.0,0.00024998,4]
[346052641,1734664238468,-500.0,0.00024998,4]
[346052642,1734664238477,-1288.95,0.00024998,4]
[346052643,1734664238487,-1288.95,0.00024998,4]
[346052644,1734664238496,-910.91,0.00024998,4]
[346052645,1734664238505,-677.48,0.00024998,4]
[346052646,1734664238515,-677.48,0.00024998,4]
[346052647,1734664238524,-500.0,0.00024998,4]
[346052648,1734664238535,-500.0,0.00024998,4]
[346052649,1734664238544,-173.21333439,0.00024998,4]
[346052650,1734664238554,-544.33533013,0.00024998,4]
[346052651,1734664238563,-501.97447794,0.00024998,4]
[346052652,1734664238573,-291.96340076,0.00024998,4]
[346052654,1734664238583,-500.0,0.00024998,4]
[346052656,1734664238593,-569.71,0.00024998,4]
[346052658,1734664238603,-394.4941,0.00024998,4]
[346052660,1734664238612,-500.0,0.00024999,2]
[346052662,1734664238621,-600.0,0.00024999,4]
[346052664,1734664238630,-492.18,0.00024999,4]
[346052666,1734664238639,-489.63732477,0.00024999,2]
[346052667,1734664238648,-2990.0,0.00024999,4]
[346052669,1734664238658,-2990.0,0.00024999,4]
[346052671,1734664238667,-2990.0,0.00024999,4]
[346052673,1734664238676,-2990.0,0.00024999,4]
[346052675,1734664238685,-2990.0,0.00024999,4]
[346052677,1734664238694,-2990.0,0.00024999,4]
[346052679,1734664238705,-2990.0,0.00024999,4]
[346052681,1734664238716,-2990.0,0.00024999,4]
[346052683,1734664238725,-2990.0,0.00024999,4]
[346052685,1734664238735,-2990.0,0.00024999,4]
[346052687,1734664238743,-2990.0,0.00024999,4]
[346052689,1734664238754,-2990.0,0.00024999,4]
[346052691,1734664238763,-2990.0,0.00024999,4]
[346052693,1734664238771,-2990.0,0.00024999,4]
[346052695,1734664238781,-2990.0,0.00024999,4]
[346052697,1734664238792,-2990.0,0.00024999,4]
[346052699,1734664238803,-2990.0,0.00024999,4]
[346052701,1734664238812,-2990.0,0.00024999,4]
[346052703,1734664238821,-2990.0,0.00024999,4]
[346052705,1734664238830,-2990.0,0.00024999,4]
[346052707,1734664238839,-2990.0,0.00024999,4]
[346052709,1734664238848,-2990.21416254,0.00024999,4]
[346052711,1734664238857,-500.0,0.00024999,4]
[346052713,1734664238867,-500.0,0.00024999,4]
[346052715,1734664238876,-246.49,0.00024999,4]
[346052717,1734664238886,-500.0,0.00024999,4]
[346052719,1734664238894,-500.0,0.00024999,4]
[346052721,1734664238903,-500.0,0.00024999,4]
[346052723,1734664238913,-500.0,0.00024999,4]
[346052724,1734664238923,-500.0,0.00024999,4]
[346052725,1734664238932,-507.32,0.00024999,4]
[346052726,1734664238941,-518.83200845,0.00024999,4]
[346052727,1734664238950,-896.31880208,0.00024999,2]
[346052728,1734664238960,-500.0,0.00024999,4]
[346052729,1734664238969,-500.0,0.00024999,4]
[346052730,1734664238978,-500.0,0.00024999,4]
[346052731,1734664238987,-510.44,0.00024999,4]
[346052732,1734664238996,-500.0,0.00024999,4]
[346052733,1734664239005,-500.0,0.00024999,4]
[346052734,1734664239014,-500.0,0.00024999,4]
[346052735,1734664239024,-500.0,0.00024999,4]
[346052736,1734664239033,-634.56,0.00024999,4]
[346052737,1734664239042,-500.0,0.00024999,4]
[346052738,1734664239051,-500.0,0.00024999,4]
[346052739,1734664239061,-546.12747607,0.00024999,4]
[346052740,1734664239071,-207.77,0.00024999,4]
[346052741,1734664239080,-8357.32,0.00024999,4]
[346052742,1734664239089,-8357.32,0.00024999,4]
[346052743,1734664239098,-8357.32,0.00024999,4]
[346052744,1734664239107,-8357.32,0.00024999,4]
[346052745,1734664239116,-8357.32,0.00024999,4]
[346052746,1734664239126,-8357.32,0.00024999,4]
[346052747,1734664239135,-8357.32,0.00024999,4]
[346052748,1734664239144,-8357.32,0.00024999,4]
[346052749,1734664239153,-8357.32,0.00024999,4]
[346052750,1734664239162,-8357.32,0.00024999,4]
[346052751,1734664239171,-8357.32,0.00024999,4]
[346052752,1734664239180,-8357.32,0.00024999,4]
[346052753,1734664239189,-8357.32,0.00024999,4]
[346052754,1734664239198,-8357.32,0.00024999,4]
[346052755,1734664239206,-8357.32,0.00024999,4]
[346052756,1734664239215,-8357.32,0.00024999,4]
[346052757,1734664239224,-8357.32,0.00024999,4]
[346052758,1734664239233,-8357.32,0.00024999,4]
[346052759,1734664239242,-8357.32,0.00024999,4]
[346052760,1734664239251,-8357.32,0.00024999,4]
[346052761,1734664239260,-8357.32,0.00024999,4]
[346052762,1734664239269,-8357.33,0.00024999,4]
[346052763,1734664239277,-500.0,0.00024999,4]
[346052764,1734664239288,-500.0,0.00024999,4]
[346052765,1734664239297,-500.0,0.00024999,4]
[346052766,1734664239306,-500.0,0.00024999,4]
[346052767,1734664239315,-500.0,0.00024999,4]
[346052768,1734664239324,-460.0,0.00024999,4]
[346052769,1734664239333,-500.0,0.00024999,4]
[346052770,1734664239342,-500.0,0.00024999,4]
[346052771,1734664239351,-500.0,0.00024999,4]
[346052772,1734664239360,-381.09375998,0.00024999,4]
[346052773,1734664239370,-500.0,0.00024999,4]
[346052774,1734664239379,-500.0,0.00024999,4]
[346052775,1734664239388,-500.0,0.00024999,4]
[346052776,1734664239397,-500.0,0.00024999,4]
[346052777,1734664239406,-500.0,0.00024999,4]
[346052778,1734664239415,-500.0,0.00024999,4]
[346052779,1734664239424,-500.0,0.00024999,4]
[346052780,1734664239576,-519.95666979,0.00024999,4]
[346052781,1734664239587,-500.0,0.00024999,4]
[346052782,1734664239597,-500.0,0.00024999,4]
[346052783,1734664239606,-500.0,0.00024999,4]
[346052784,1734664239615,-500.0,0.00024999,4]
[346052785,1734664239624,-317.36,0.00024999,4]
[346052786,1734664239634,-221.19303029,0.00024999,4]
[346052787,1734664239643,-500.0,0.00024999,4]
[346052788,1734664239652,-500.0,0.00024999,4]
[346052789,1734664239661,-500.0,0.00024999,4]
[346052790,1734664239671,-374.3,0.00024999,4]
[346052791,1734664239680,-245.58190198,0.00024999,4]
[346052792,1734664239690,-1288.95,0.00024999,4]
[346052793,1734664239700,-1288.95,0.00024999,4]
[346052794,1734664239711,-1288.95,0.00024999,4]
[346052795,1734664239721,-1288.95,0.00024999,4]
[346052796,1734664239731,-1288.95,0.00024999,4]
[346052797,1734664239740,-1288.95,0.00024999,4]
[346052798,1734664239750,-1288.95,0.00024999,4]
[346052799,1734664239759,-1288.95,0.00024999,4]
[346052800,1734664239768,-1288.95,0.00024999,4]
[346052801,1734664239778,-1288.95,0.00024999,4]
[346052802,1734664239790,-1288.95,0.00024999,4]
[346052803,1734664239799,-1288.95,0.00024999,4]
[346052804,1734664239808,-1288.95,0.00024999,4]
[346052805,1734664239818,-1288.95,0.00024999,4]
[346052806,1734664239828,-1288.95,0.00024999,4]
[346052807,1734664239838,-1288.95,0.00024999,4]
[346052808,1734664239847,-1288.95,0.00024999,4]
[346052809,1734664239856,-1288.95,0.00024999,4]
[346052810,1734664239865,-1288.95,0.00024999,4]
[346052811,1734664239874,-1288.95,0.00024999,4]
[346052812,1734664239883,-1288.95,0.00024999,4]
[346052813,1734664239892,-1289.04361801,0.00024999,4]
[346052814,1734664239901,-910.91,0.00024999,4]
[346052815,1734664239910,-910.91,0.00024999,4]
[346052816,1734664239920,-910.91,0.00024999,4]
[346052817,1734664239929,-910.91,0.00024999,4]
[346052818,1734664239938,-910.91,0.00024999,4]
[346052819,1734664239948,-910.91,0.00024999,4]
[346052820,1734664239957,-910.91,0.00024999,4]
[346052821,1734664239967,-910.91,0.00024999,4]
[346052822,1734664239976,-910.91,0.00024999,4]
[346052823,1734664239985,-910.91,0.00024999,4]
[346052824,1734664239995,-910.91,0.00024999,4]
[346052825,1734664240004,-910.91,0.00024999,4]
[346052826,1734664240013,-910.91,0.00024999,4]
[346052827,1734664240022,-910.91,0.00024999,4]
[346052829,1734664240032,-910.91,0.00024999,4]
[346052830,1734664240045,-910.91,0.00024999,4]
[346052831,1734664240054,-910.91,0.00024999,4]
[346052833,1734664240063,-910.91,0.00024999,4]
[346052834,1734664240072,-910.91,0.00024999,4]
[346052835,1734664240082,-910.91,0.00024999,4]
[346052836,1734664240091,-910.91,0.00024999,4]
[346052837,1734664240100,-910.91,0.00024999,4]
[346052838,1734664240110,-910.96867799,0.00024999,4]
[346052839,1734664240119,-677.48,0.00024999,4]
[346052840,1734664240128,-677.48,0.00024999,4]
[346052841,1734664240138,-677.48,0.00024999,4]
[346052842,1734664240146,-677.48,0.00024999,4]
[346052843,1734664240155,-677.48,0.00024999,4]
[346052844,1734664240165,-677.48,0.00024999,4]
[346052845,1734664240174,-677.48,0.00024999,4]
[346052846,1734664240183,-677.48,0.00024999,4]
[346052847,1734664240192,-677.48,0.00024999,4]
[346052848,1734664240201,-677.48,0.00024999,4]
[346052849,1734664240211,-677.48,0.00024999,4]
[346052850,1734664240220,-677.48,0.00024999,4]
[346052851,1734664240230,-677.48,0.00024999,4]
[346052852,1734664240239,-677.48,0.00024999,4]
[346052853,1734664240248,-677.48,0.00024999,4]
[346052854,1734664240258,-677.48,0.00024999,4]
[346052855,1734664240267,-677.48,0.00024999,4]
[346052856,1734664240276,-677.48,0.00024999,4]
[346052857,1734664240288,-677.48,0.00024999,4]
[346052858,1734664240297,-677.48,0.00024999,4]
[346052859,1734664240306,-677.48,0.00024999,4]
[346052860,1734664240316,-677.48517597,0.00024999,4]
[346052861,1734664240325,-500.0,0.00024999,4]
[346052862,1734664240334,-500.0,0.00024999,4]
[346052863,1734664240344,-500.0,0.00024999,4]
[346052864,1734664240353,-500.0,0.00024999,4]
[346052865,1734664240363,-500.0,0.00024999,4]
[346052866,1734664240372,-500.0,0.00024999,4]
[346052867,1734664240382,-500.0,0.00024999,4]
[346052868,1734664240391,-601.90167609,0.00024999,4]
[346052869,1734664240400,-150.0,0.00024999,2]
[346052870,1734664240409,-150.0,0.00024999,2]
[346052871,1734664240419,-150.0,0.00024999,2]
[346052872,1734664240428,-150.0,0.00024999,2]
[346052873,1734664240438,-150.0,0.00024999,2]
[346052874,1734664240447,-500.0,0.00024999,4]
[346052875,1734664240456,-500.0,0.00024999,4]
[346052876,1734664240465,-150.0,0.00024999,2]
[346052877,1734664240475,-500.0,0.00024999,4]
[346052878,1734664240485,-500.0,0.00024999,4]
[346052879,1734664240494,-500.0,0.00024999,4]
[346052880,1734664240504,-150.0,0.00024999,2]
[346052881,1734664240513,-500.0,0.00024999,4]
[346052882,1734664240522,-500.0,0.00024999,4]
[346052883,1734664240532,-430.56787867,0.00024999,4]
[346052884,1734664240543,-150.0,0.00024999,2]
[346052885,1734664240551,-150.0,0.00024999,2]
[346052886,1734664240561,-150.0,0.00024999,2]
[346052887,1734664240574,-150.0,0.00024999,2]
[346052888,1734664240583,-150.0,0.00024999,2]
[346052889,1734664240592,-150.0,0.00024999,2]
[346052890,1734664240602,-150.0,0.00024999,2]
[346052891,1734664240611,-150.0,0.00024999,2]
[346052892,1734664240620,-150.0,0.00024999,2]
[346052893,1734664240629,-150.0,0.00024999,2]
[346052894,1734664240641,-150.0,0.00024999,2]
[346052895,1734664240650,-150.0,0.00024999,2]
[346052896,1734664240659,-150.0,0.00024999,2]
[346052897,1734664240669,-150.0,0.00024999,2]
[346052898,1734664240679,-150.0,0.00024999,2]
[346052899,1734664240688,-150.0,0.00024999,2]
[346052900,1734664240697,-150.0,0.00024999,2]
[346052901,1734664240707,-150.0,0.00024999,2]
[346052902,1734664240720,-150.0,0.00024999,2]
[346052903,1734664240729,-150.0,0.00024999,2]
[346052904,1734664240739,-150.0,0.00024999,2]
[346052905,1734664240748,-150.0,0.00024999,2]
[346052906,1734664240757,-150.0,0.00024999,2]
[346052907,1734664240768,-150.0,0.00024999,2]
[346052908,1734664240777,-250.53,0.00025,2]
[346052909,1734664240787,-704.0,0.00025,2]
[346052910,1734664240798,-412568.12490014,0.00025,3]
[346052911,1734664240808,-179.14669119,0.00025,3]
[346052912,1734664240817,-4192.7528986,0.00025,2]
[346052913,1734664240826,-4148726.70319256,0.00025,2]
[346052914,1734664240836,-681.96930934,0.00025,2]
[346052915,1734664240846,-2018562.661306,0.00025,2]
[346052916,1734664240855,-115397.24687989,0.00025,10]
[346052917,1734664240864,-1872057.86312375,0.00025,2]
[346052918,1734664240881,-185889.26638488,0.00025,2]
[346052919,1734664240892,-843.03474725,0.00025,2]
[346052920,1734664241235,-10375.41459194,0.00025,2]
[346052921,1734664241276,303.91100309,0.000235,120]
[346052922,1734664241315,-487.46,0.00025,2]
[346052923,1734664241326,-253.33296986,0.00025,2]
[346052924,1734664241337,-975.93259825,0.00025,2]
[346052939,1734664243236,-513.0,0.00025,2]
[346052940,1734664246082,-681.0,0.00025,2]
[346052941,1734664246092,-1140.10700882,0.00025,2]
[346052942,1734664246332,-648.56010815,0.00025,2]
[346052943,1734664327738,157.6,0.00010137,2]
[346052992,1734665423597,154.29,0.00010137,2]
[346053006,1734665432580,-295.86,0.00022111,2]
[346053007,1734665432590,-122.12026338,0.0002375,2]
[346053010,1734665432601,-280.07673662,0.0002375,2]
[346053011,1734665432610,-712.10889954,0.00023945,2]
[346053020,1734665438135,-20.38110046,0.00023945,2]
[346053021,1734665438145,-979.61889954,0.00023998,2]
[346053022,1734665438395,-20.38110046,0.00023998,2]
[346053023,1734665438405,-200.0,0.00023999,10]
[346053024,1734665438414,-2500.38617498,0.00024,10]
[346053025,1734665438424,-500.0,0.00024,120]
[346053026,1734665438433,-5652.77964071,0.00024,2]
[346053027,1734665438443,-486.68,0.00024,2]
[346053028,1734665438452,-751.72,0.00024001,2]
[346053029,1734665438461,-250.0,0.00024003,2]
[346053030,1734665438471,-608.81,0.00024009,2]
[346053031,1734665438481,-155.95,0.00024285,30]
[346053032,1734665438491,-20030.40662322,0.000243,14]
[346053033,1734665438500,-295.86,0.00024375,2]
[346053034,1734665438510,-150.0,0.00024658,2]
[346053035,1734665438520,-152.96,0.000249,31]
[346053036,1734665438529,-152.96,0.000249,31]
[346053037,1734665438540,-152.96,0.000249,31]
[346053038,1734665438549,-152.96,0.000249,31]
[346053039,1734665438558,-152.96,0.000249,31]
[346053040,1734665438567,-152.96,0.000249,31]
[346053041,1734665438577,-152.96,0.000249,31]
[346053042,1734665438586,-200.0,0.000249,2]
[346053043,1734665438595,-7898.3,0.0002498,2]
[346053044,1734665438605,-8464.03,0.0002498,2]
[346053045,1734665438614,-150.99,0.0002498,2]
[346053046,1734665438624,-382.14,0.0002498,2]
[346053047,1734665438634,-150.99,0.0002498,2]
[346053048,1734665438644,-3586.13,0.0002498,2]
[346053049,1734665438653,-24496.47,0.0002498,2]
[346053052,1734665438663,-411.45,0.0002498,2]
[346053054,1734665438672,-5146.94520652,0.00024998,3]
[346053055,1734665438682,-500.0,0.00024998,4]
[346053056,1734665438691,-500.0,0.00024998,4]
[346053057,1734665438700,-1000.0,0.00024998,5]
[346053058,1734665438709,-1000.0,0.00024998,5]
[346053059,1734665438719,-222.122012,0.00024998,14]
[346053060,1734665438729,-157.122012,0.00024998,4]
[346053061,1734665438738,-157.122012,0.00024998,12]
[346053062,1734665438747,-157.122012,0.00024998,5]
[346053063,1734665438758,-156.122012,0.00024998,6]
[346053064,1734665438767,-150.122012,0.00024998,7]
[346053065,1734665438776,-466.1349343,0.00024998,4]
[346053066,1734665438786,-500.0,0.00024998,4]
[346053067,1734665438796,-500.0,0.00024998,4]
[346053068,1734665438806,-500.0,0.00024998,4]
[346053069,1734665438815,-500.0,0.00024998,4]
[346053070,1734665438825,-1309.37,0.00024998,4]
[346053071,1734665438834,-1309.37,0.00024998,4]
[346053072,1734665438844,-500.0,0.00024998,4]
[346053073,1734665438853,-500.0,0.00024998,4]
[346053074,1734665438863,-621.02,0.00024998,4]
[346053075,1734665438873,-621.02,0.00024998,4]
[346053076,1734665438882,-500.0,0.00024998,4]
[346053077,1734665438891,-500.0,0.00024998,4]
[346053078,1734665438900,-500.0,0.00024998,4]
[346053079,1734665438910,-500.0,0.00024998,4]
[346053080,1734665438920,-221.72231889,0.00024999,4]
[346053081,1734665438929,-500.0,0.00024999,4]
[346053082,1734665438939,-500.0,0.00024999,4]
[346053083,1734665438950,-500.0,0.00024999,4]
[346053084,1734665438959,-500.0,0.00024999,4]
[346053085,1734665438969,-500.0,0.00024999,4]
[346053086,1734665438978,-500.0,0.00024999,4]